fUST/lending_fUST_20250725
["ID","MTS","AMOUNT","RATE_DAILY","PERIOD"]
[374702560,1753419058291,-151.0,0.000249,7]
[374702561,1753419058300,-206.0,0.000249,2]
[374702562,1753419058310,-189.411902,0.000249,7]
[374702563,1753419058319,-189.411902,0.000249,7]
[374702564,1753419058328,-523.59232976,0.000249,2]
[374702565,1753419058337,-250.808405,0.000249,7]
[374702566,1753419058346,-250.808405,0.000249,7]
[374702567,1753419058355,-151.0,0.000249,7]
[374702568,1753419058365,-151.818332,0.000249,7]
[374702569,1753419058374,-151.0,0.000249,7]
[374702570,1753419058382,-151.0,0.000249,7]
[374702571,1753419058391,-151.0,0.000249,7]
[374702572,1753419058400,-151.0,0.000249,7]
[374702573,1753419058409,-154.094668,0.000249,2]
[374702574,1753419058418,-334.597719,0.000249,7]
[374702575,1753419058427,-334.597719,0.000249,7]
[374702576,1753419058436,-151.0,0.000249,7]
[374702577,1753419058445,-198.313296,0.000249,7]
[374702578,1753419058454,-198.313296,0.000249,7]
[374702579,1753419058464,-408.384394,0.000249,7]
[374702580,1753419058473,-408.384394,0.000249,7]
[374702581,1753419058482,-151.0,0.000249,7]
[374702582,1753419058491,-151.0,0.000249,7]
[374702583,1753419058500,-151.0,0.000249,7]
[374702584,1753419058509,-152.4612,0.000249,7]
[374702585,1753419058518,-151.0,0.000249,7]
[374702586,1753419058529,-151.0,0.000249,7]
[374702587,1753419058538,-155.790087,0.000249,7]
[374702588,1753419058548,-151.0,0.000249,7]
[374702589,1753419058556,-151.0,0.000249,7]
[374702590,1753419058566,-151.0,0.000249,7]
[374702591,1753419058575,-151.0,0.000249,7]
[374702592,1753419058584,-160.2,0.000249,6]
[374702593,1753419058593,-151.0,0.000249,7]
[374702594,1753419058602,-151.0,0.000249,7]
[374702595,1753419058612,-456.851891,0.000249,7]
[374702596,1753419058621,-456.851891,0.000249,7]
[374702597,1753419058630,-344.603171,0.000249,7]
[374702598,1753419058640,-344.603171,0.000249,7]
[374702599,1753419058650,-151.0,0.000249,7]
[374702600,1753419058659,-151.0,0.000249,7]
[374702601,1753419058670,-151.0,0.000249,7]
[374702602,1753419058684,-723208.57993403,0.000249,2]
[374702603,1753419058803,-113644.07157297,0.000249,2]
[374702604,1753419058812,-155.983835,0.000249,2]
[374702605,1753419058821,-324.9286,0.000249,2]
[374702606,1753419058831,-324.9286,0.000249,2]
[374702607,1753419058840,-151.0,0.000249,7]
[374702608,1753419058850,-196.341692,0.000249,7]
[374702609,1753419058859,-196.341692,0.000249,7]
[374702610,1753419058867,-600.0,0.000249,2]
[374702611,1753419058876,-151.0,0.000249,7]
[374702612,1753419058887,-158.038656,0.000249,7]
[374702613,1753419058896,-151.0,0.000249,7]
[374702614,1753419058905,-158.038656,0.000249,7]
[374702615,1753419058916,-500.0,0.00024926,2]
[374702616,1753419058925,-530.35845581,0.00024928,2]
[374702617,1753419058935,-647.95042162,0.00024928,2]
[374702618,1753419058944,-609.0,0.00024932,2]
[374702619,1753419058954,-500.0,0.00024932,2]
[374702620,1753419058964,-1317.53,0.00024947,4]
[374702621,1753419058973,-1316.50659601,0.00024948,29]
[374702622,1753419058983,-3107.29946651,0.0002495,2]
[374702623,1753419058992,-1130.681488,0.0002498,5]
[374702624,1753419059001,-648.0,0.00024987,2]
[374702625,1753419059010,-2157.0,0.00024987,2]
[374702626,1753419059019,-407.0,0.00024987,2]
[374702627,1753419059029,-407.0,0.00024987,2]
[374702628,1753419059038,-969.0,0.00024987,2]
[374702629,1753419059048,-500.0,0.0002499,5]
[374702630,1753419059057,-500.0,0.0002499,5]
[374702631,1753419059066,-500.0,0.0002499,5]
[374702632,1753419059075,-230.0,0.00024998,2]
[374702633,1753419059084,-200.45473655,0.00024999,2]
[374702634,1753419059094,-2000.0,0.00024999,10]
[374702635,1753419059103,-2000.0,0.00024999,10]
[374702636,1753419059112,-2000.0,0.00024999,10]
[374702637,1753419059121,-2000.0,0.00024999,10]
[374702638,1753419059130,-2000.0,0.00024999,10]
[374702639,1753419059140,-2000.0,0.00024999,10]
[374702640,1753419059149,-2000.0,0.00024999,10]
[374702641,1753419059157,-1380.88515692,0.00024999,7]
[374702642,1753419059166,-313.46,0.00025,7]
[374702643,1753419059175,-2037.84173128,0.00025,14]
[374702644,1753419059185,-33636.11785191,0.00025,7]
[374702645,1753419059194,-1063.77924524,0.00025,2]
[374702646,1753419059203,-16001.39255002,0.00025,2]
[374702647,1753419059212,-93047.01830104,0.00025,2]
[374702648,1753419059221,-2619.65465148,0.00025,2]
[374702649,1753419059230,-207.73294883,0.00025,2]
[374702650,1753419059239,-10364.0,0.00025,2]
[374702651,1753419059247,-358.56660821,0.00025,2]
[374702652,1753419059256,-500.0,0.00025,2]
[374702653,1753419059265,-81127.10483674,0.00025,2]
[374702654,1753419059277,-1174.5,0.00025,2]
[374702678,1753419059609,-464.26216055,0.00016869,2]
[374702680,1753419059620,-460.0,0.0001687,2]
[374702682,1753419059630,-460.0,0.00016874,2]
[374702684,1753419059639,-460.0,0.00017144,2]
[374702686,1753419059648,-460.0,0.00017148,2]
[374702688,1753419059657,-460.0,0.00017418,2]
[374702690,1753419059666,-460.0,0.00017692,2]
[374702692,1753419059675,-460.0,0.00017966,2]
[374702694,1753419059685,-237.7318,0.000249,7]
[374702696,1753419059695,-348.24347717,0.00025,2]
[374702730,1753419060015,-1.35433188,0.00016877,2]
[374702732,1753419060026,-458.64566812,0.00016877,2]
[374702734,1753419060037,-460.0,0.00016978,2]
[374702736,1753419060047,-360.54,0.00017151,2]
[374702738,1753419060056,-460.0,0.00017422,2]
[374702740,1753419060065,-333.1,0.00017696,2]
[374702742,1753419060075,-460.0,0.0001824,2]
[374702744,1753419060084,-460.0,0.00018514,2]
[374702746,1753419060094,-460.0,0.00018788,2]
[374702748,1753419060104,-460.0,0.00019062,2]
[374702750,1753419060114,-460.0,0.00019336,2]
[374702752,1753419060123,-460.0,0.0001961,2]
[374702754,1753419060132,-460.0,0.00019884,2]
[374702756,1753419060143,-579.4,0.00020158,2]
[374702758,1753419060152,-34838.83672595,0.00025,2]
[374702760,1753419060162,-200.0,0.00025,7]
[374702762,1753419060172,-600.0,0.00025,2]
[374702764,1753419060182,-160.0,0.00025,3]
[374702766,1753419060192,-160.0,0.00025,3]
[374702768,1753419060202,-204.38131976,0.00025,12]
[374702770,1753419060212,-160.0,0.00025,3]
[374702772,1753419060222,-231.20877768,0.00025,3]
[374702774,1753419060232,-231.20877768,0.00025,10]
[374702776,1753419060241,-2903.84,0.00025,7]
[374702778,1753419060251,-1000.0,0.00025,5]
[374702780,1753419060260,-840.4016166,0.00025,10]
[374702782,1753419060270,-160.0,0.00025,10]
[374702784,1753419060280,-203.238563,0.00025,2]
[374702786,1753419060290,-526.33361954,0.00025,10]
[374702788,1753419060300,-526.33361954,0.00025,7]
[374702790,1753419060310,-214.7599002,0.00025,10]
[374702792,1753419060319,-500.0,0.00025002,2]
[374702794,1753419060329,-1111.11,0.0002501,7]
[374702796,1753419060339,-293.85068442,0.0002502,2]
[374702798,1753419060348,-2622.06239546,0.00025026,2]
[374702800,1753419060357,-154.094668,0.00025032,30]
[374702802,1753419060367,-154.094668,0.00025037,5]
[374702804,1753419060376,-154.094668,0.0002504,3]
[374702806,1753419060386,-155.983835,0.0002504,3]
[374702808,1753419060395,-1317.53,0.00025047,4]
[374702810,1753419060405,-500.0,0.00025049,2]
[374702812,1753419060415,-500.0,0.00025055,2]
[374702814,1753419060425,-700.0,0.0002507,2]
[374702816,1753419060435,-154.094668,0.00025094,4]
[374702818,1753419060445,-700.0,0.00025118,2]
[374702820,1753419060455,-478.78,0.0002512,2]
[374702822,1753419060464,-1317.53,0.00025147,7]
[374702824,1753419060474,-601.77335126,0.00025149,2]
[374702826,1753419060484,-429.8269109,0.00025151,2]
[374702828,1753419060494,-429.8269109,0.00025151,2]
[374702830,1753419060503,-429.8269109,0.00025151,2]
[374702832,1753419060513,-429.8269109,0.00025151,2]
[374702834,1753419060523,-429.8269109,0.00025151,2]
[374702836,1753419060534,-858.7914761,0.00025151,2]
[374702838,1753419060544,-500.0,0.00025185,2]
[374702840,1753419060553,-500.0,0.00025186,2]
[374702842,1753419060563,-500.0,0.0002519,5]
[374702844,1753419060572,-500.0,0.0002519,5]
[374702846,1753419060581,-500.0,0.0002519,5]
[374702848,1753419060590,-500.0,0.0002519,5]
[374702850,1753419060599,-500.0,0.0002519,5]
[374702852,1753419060609,-500.0,0.0002519,5]
[374702853,1753419060618,-354.21,0.000252,11]
[374702856,1753419060628,-507.0,0.000252,30]
[374702858,1753419060637,-500.0,0.00025203,2]
[374702860,1753419060646,-1632.19,0.00025205,4]
[374702862,1753419060656,-609.0,0.00025206,2]
[374702864,1753419060665,-700.0,0.00025213,2]
[374702866,1753419060675,-152.174412,0.00025221,7]
[374702868,1753419060684,-500.0,0.00025245,2]
[374702870,1753419060695,-1317.53,0.00025247,7]
[374702872,1753419060706,-700.0,0.00025272,2]
[374702874,1753419060715,-319.1862312,0.00025288,2]
[374702876,1753419060725,-181.5136494,0.00025288,2]
[374702878,1753419060734,-178.3051933,0.00025288,2]
[374702880,1753419060744,-1155.310423,0.00025288,2]
[374702882,1753419060757,-178.3051933,0.00025288,2]
[374702884,1753419060767,-500.0,0.00025329,2]
[374702886,1753419060776,-500.0,0.00025333,2]
[374702888,1753419060790,-407.46349236,0.00025342,2]
[374702890,1753419060800,-700.0,0.00025347,2]
[374702892,1753419060809,-1317.53,0.00025347,7]
[374702894,1753419060819,-152.5171,0.00025348,7]
[374702896,1753419060830,-152.082524,0.00025348,7]
[374702898,1753419060839,-195.8964,0.00025348,7]
[374702900,1753419060849,-195.8964,0.00025348,7]
[374702903,1753419060859,-151.70559,0.00025348,7]
[374702905,1753419060868,-152.160822,0.00025378,7]
[374702907,1753419060878,-700.0,0.00025381,2]
[374702909,1753419060888,-2000.0,0.000254,2]
[374702911,1753419060898,-2000.0,0.000254,2]
[374702913,1753419060908,-1360.0,0.00025418,2]
[374702915,1753419060918,-1317.53,0.00025447,5]
[374702917,1753419060928,-800.0,0.00025448,2]
[374702919,1753419060937,-900.0,0.00025469,3]
[374702921,1753419060947,-151.0,0.00025469,7]
[374702923,1753419060956,-151.0,0.00025469,7]
[374702925,1753419060965,-16279.66408683,0.0002547,2]
[374702927,1753419060974,-609.0,0.0002548,2]
[374702929,1753419060983,-700.0,0.00025483,2]
[374702931,1753419060991,-154.094668,0.00025492,4]
[374702933,1753419061001,-155.983835,0.00025492,4]
[374702935,1753419061011,-1000.0,0.000255,2]
[374702937,1753419061022,-2622.06239546,0.00025501,2]
[374702939,1753419061034,-151.0,0.00025521,7]
[374702941,1753419061044,-151.0,0.00025521,7]
[374702943,1753419061053,-189.411902,0.00025521,7]
[374702945,1753419061062,-189.411902,0.00025521,7]
[374702947,1753419061071,-250.808405,0.00025521,7]
[374702949,1753419061081,-250.808405,0.00025521,7]
[374702951,1753419061090,-700.0,0.00025524,2]
[374702953,1753419061100,-198.06334641,0.00025538,2]
[374702955,1753419061110,-151.0,0.00025547,7]
[374702958,1753419061120,-1317.53,0.00025547,6]
[374702959,1753419061129,-500.0,0.0002555,2]
[374702961,1753419061139,-500.0,0.00025565,2]
[374702964,1753419061148,-500.0,0.00025573,2]
[374702966,1753419061158,-700.0,0.00025574,2]
[374702968,1753419061167,-1111.11,0.00025576,7]
[374702970,1753419061177,-500.0,0.00025596,2]
[374702972,1753419061186,-4217.37,0.000256,7]
[374702974,1753419061196,-36485.36,0.000256,2]
[374702976,1753419061206,-700.0,0.00025607,2]
[374702978,1753419061215,-700.0,0.00025639,2]
[374702980,1753419061224,-1317.53,0.00025647,5]
[374702982,1753419061234,-657.45997126,0.000257,2]
[374702984,1753419061243,-10270.64,0.000257,7]
[374702986,1753419061252,-154.094668,0.0002571,6]
[374702988,1753419061262,-154.094668,0.0002571,30]
[374702990,1753419061272,-155.983835,0.0002571,6]
[374702992,1753419061283,-155.983835,0.0002571,30]
[374702994,1753419061292,-700.0,0.00025742,2]
[374702996,1753419061301,-1317.53,0.00025747,6]
[374702998,1753419061311,-245.93190959,0.00025754,2]
[374702999,1753419061321,-609.0,0.00025754,2]
[374703000,1753419061330,-700.0,0.0002576,2]
[374703001,1753419061340,-195.0,0.00025775,7]
[374703002,1753419061349,-700.0,0.00025785,2]
[374703003,1753419061358,-700.0,0.00025799,2]
[374703004,1753419061368,-500.0,0.00025808,2]
[374703005,1753419061376,-700.0,0.00025818,2]
[374703006,1753419061385,-700.0,0.0002582,2]
[374703007,1753419061395,-302.72757545,0.00025826,16]
[374703008,1753419061404,-248.71531821,0.00025828,2]
[374703009,1753419061414,-1317.53,0.00025847,3]
[374703010,1753419061423,-154.094668,0.00025849,5]
[374703011,1753419061433,-155.983835,0.00025849,5]
[374703012,1753419061442,-154.094668,0.00025889,4]
[374703013,1753419061452,-155.983835,0.00025889,4]
[374703015,1753419061463,-500.0,0.0002591,2]
[374703016,1753419061472,-700.0,0.00025924,2]
[374703018,1753419061483,-1317.53,0.00025947,3]
[374703021,1753419061492,-700.0,0.0002595,2]
[374703022,1753419061502,-791.63201191,0.00025965,2]
[374703024,1753419061511,-1047.27167015,0.00025966,2]
[374703026,1753419061520,-2622.06239546,0.00025975,2]
[374703028,1753419061529,-921.25516951,0.00025992,2]
[374703030,1753419061540,-518.84612973,0.00026,2]
[374703032,1753419061549,-19900.0,0.00026,2]
[374703034,1753419061559,-38646.65103664,0.00026,10]
[374703036,1753419061568,-1000.0,0.00026,2]
[374703038,1753419061578,-728.62198383,0.00026,3]
[374703041,1753419061598,-180.9,0.00026,8]
[374703042,1753419061614,-14541.25526228,0.00026,30]
[374703044,1753419061624,-98396.43070061,0.00026,30]
[374703046,1753419061634,-160.0,0.00026,3]
[374703049,1753419061644,-2903.84,0.00026,7]
[374703051,1753419061654,-151.0,0.00026,7]
[374703053,1753419061663,-151.0,0.00026,7]
[374703055,1753419061672,-151.0,0.00026,7]
[374703057,1753419061681,-151.0,0.00026,7]
[374703059,1753419061691,-151.0,0.00026,7]
[374703060,1753419061699,-151.0,0.00026,7]
[374703062,1753419061709,-431.187973,0.00026,7]
[374703064,1753419061718,-431.187973,0.00026,7]
[374703066,1753419061728,-151.0,0.00026,7]
[374703069,1753419061737,-151.0,0.00026,7]
[374703071,1753419061748,-151.0,0.00026,7]
[374703072,1753419061759,-334.597719,0.00026,7]
[374703074,1753419061768,-334.597719,0.00026,7]
[374703076,1753419061777,-151.0,0.00026,7]
[374703078,1753419061788,-198.313296,0.00026,7]
[374703080,1753419061798,-198.313296,0.00026,7]
[374703082,1753419061808,-408.384394,0.00026,7]
[374703085,1753419061817,-408.384394,0.00026,7]
[374703087,1753419061827,-151.0,0.00026,7]
[374703089,1753419061837,-151.0,0.00026,7]
[374703090,1753419061846,-151.0,0.00026,7]
[374703092,1753419061856,-151.0,0.00026,7]
[374703094,1753419061866,-151.0,0.00026,7]
[374703096,1753419061875,-151.0,0.00026,7]
[374703098,1753419061884,-152.909687,0.00026,7]
[374703100,1753419061894,-151.0,0.00026,7]
[374703102,1753419061903,-151.0,0.00026,7]
[374703104,1753419061913,-151.0,0.00026,7]
[374703106,1753419061922,-456.851891,0.00026,7]
[374703108,1753419061931,-456.851891,0.00026,7]
[374703110,1753419061940,-344.603171,0.00026,7]
[374703112,1753419061950,-344.603171,0.00026,7]
[374703114,1753419061959,-151.0,0.00026,7]
[374703116,1753419061968,-160.0,0.00026,30]
[374703118,1753419061977,-160.0,0.00026,3]
[374703120,1753419061987,-160.0,0.00026,10]
[374703122,1753419061997,-151.0,0.00026,7]
[374703124,1753419062007,-151.0,0.00026,7]
[374703126,1753419062017,-526.33361954,0.00026,30]
[374703128,1753419062026,-526.33361954,0.00026,10]
[374703130,1753419062036,-151.0,0.00026,7]
[374703132,1753419062046,-196.341692,0.00026,7]
[374703134,1753419062055,-196.341692,0.00026,7]
[374703146,1753419062158,-214.7599002,0.00026,30]
[374703148,1753419062169,-151.0,0.00026,7]
[374703150,1753419062178,-158.038656,0.00026,7]
[374703152,1753419062188,-151.0,0.00026,7]
[374703154,1753419062197,-158.038656,0.00026,7]
[374703156,1753419062207,-809.4721335,0.00026005,2]
[374703158,1753419062217,-1000.0,0.00026027,5]
[374703160,1753419062227,-500.0,0.00026027,7]
[374703162,1753419062236,-500.0,0.00026027,2]
[374703164,1753419062246,-500.0,0.00026027,10]
[374703166,1753419062256,-500.0,0.00026027,10]
[374703168,1753419062267,-500.0,0.00026027,2]
[374703170,1753419062278,-531.539776,0.00026027,2]
[374703172,1753419062290,-307.35037791,0.00026027,2]
[374703174,1753419062300,-609.0,0.00026028,2]
[374703176,1753419062311,-1000.0,0.0002604,5]
[374703178,1753419062320,-1317.53,0.00026047,2]
[374703180,1753419062330,-1000.0,0.0002605,5]
[374703182,1753419062340,-693.0,0.0002605,5]
[374703184,1753419062351,-1000.0,0.0002606,5]
[374703186,1753419062362,-899.36,0.00026062,120]
[374703188,1753419062371,-151.0,0.0002607,7]
[374703190,1753419062381,-151.0,0.0002607,7]
[374703192,1753419062391,-151.0,0.0002607,7]
[374703194,1753419062400,-151.0,0.0002607,7]
[374703196,1753419062409,-151.0,0.0002607,7]
[374703198,1753419062419,-151.0,0.0002607,7]
[374703200,1753419062428,-151.0,0.0002607,7]
[374703202,1753419062437,-151.0,0.0002607,7]
[374703204,1753419062446,-267.045991,0.0002607,7]
[374703206,1753419062456,-195.8964,0.0002607,7]
[374703208,1753419062465,-195.8964,0.0002607,7]
[374703210,1753419062474,-195.8964,0.0002607,7]
[374703212,1753419062484,-195.8964,0.0002607,7]
[374703214,1753419062493,-195.8964,0.0002607,7]
[374703216,1753419062503,-195.8964,0.0002607,7]
[374703218,1753419062512,-195.8964,0.0002607,7]
[374703220,1753419062522,-195.8964,0.0002607,7]
[374703222,1753419062532,-195.8964,0.0002607,7]
[374703224,1753419062542,-195.8964,0.0002607,7]
[374703226,1753419062551,-195.8964,0.0002607,7]
[374703228,1753419062561,-195.8964,0.0002607,7]
[374703230,1753419062571,-195.8964,0.0002607,7]
[374703232,1753419062581,-195.896392,0.0002607,7]
[374703234,1753419062590,-151.0,0.00026074,7]
[374703236,1753419062599,-151.0,0.00026074,7]
[374703238,1753419062609,-151.0,0.00026074,7]
[374703240,1753419062619,-152.623267,0.00026074,7]
[374703242,1753419062628,-151.0,0.00026074,7]
[374703244,1753419062637,-151.0,0.00026074,7]
[374703246,1753419062647,-151.0,0.00026074,7]
[374703249,1753419062657,-151.0,0.00026074,7]
[374703250,1753419062666,-151.0,0.00026074,7]
[374703253,1753419062676,-151.0,0.00026074,7]
[374703255,1753419062685,-226.126172,0.00026074,7]
[374703257,1753419062695,-151.0,0.00026074,7]
[374703259,1753419062705,-151.0,0.00026074,7]
[374703261,1753419062715,-151.0,0.00026074,7]
[374703263,1753419062725,-192.24582,0.00026074,7]
[374703265,1753419062734,-334.597719,0.00026074,7]
[374703267,1753419062745,-334.597719,0.00026074,7]
[374703269,1753419062758,-334.597719,0.00026074,7]
[374703271,1753419062768,-334.597719,0.00026074,7]
[374703273,1753419062777,-334.597719,0.00026074,7]
[374703275,1753419062788,-334.597719,0.00026074,7]
[374703277,1753419062800,-334.597719,0.00026074,7]
[374703279,1753419062809,-334.597719,0.00026074,7]
[374703281,1753419062820,-334.597719,0.00026074,7]
[374703283,1753419062833,-334.597719,0.00026074,7]
[374703285,1753419062847,-334.597719,0.00026074,7]
[374703287,1753419062856,-334.597719,0.00026074,7]
[374703289,1753419062866,-334.597719,0.00026074,7]
[374703291,1753419062875,-334.597719,0.00026074,7]
[374703293,1753419062885,-334.597719,0.00026074,7]
[374703295,1753419062895,-334.59771499,0.00026074,7]
[374703297,1753419062904,-151.0,0.00026074,7]
[374703299,1753419062914,-151.0,0.00026074,7]
[374703301,1753419062924,-151.0,0.00026074,7]
[374703303,1753419062934,-151.0,0.00026074,7]
[374703305,1753419062943,-280.404748,0.00026074,7]
[374703307,1753419062953,-151.0,0.00026074,7]
[374703309,1753419062962,-151.0,0.00026074,7]
[374703311,1753419062972,-151.0,0.00026074,7]
[374703313,1753419062981,-151.0,0.00026074,7]
[374703315,1753419062990,-151.0,0.00026074,7]
[374703317,1753419062999,-151.0,0.00026074,7]
[374703319,1753419063008,-151.0,0.00026074,7]
[374703321,1753419063018,-151.0,0.00026074,7]
[374703323,1753419063027,-247.087844,0.00026074,7]
[374703325,1753419063038,-151.0,0.00026074,7]
[374703327,1753419063048,-151.0,0.00026074,7]
[374703329,1753419063057,-151.0,0.00026074,7]
[374703331,1753419063067,-151.0,0.00026074,7]
[374703333,1753419063077,-177.873736,0.00026074,7]
[374703335,1753419063087,-151.0,0.00026074,7]
[374703337,1753419063096,-151.0,0.00026074,7]
[374703339,1753419063106,-151.0,0.00026074,7]
[374703341,1753419063115,-151.0,0.00026074,7]
[374703343,1753419063125,-151.0,0.00026074,7]
[374703345,1753419063134,-189.80093,0.00026074,7]
[374703347,1753419063144,-151.0,0.00026074,7]
[374703349,1753419063155,-151.0,0.00026074,7]
[374703351,1753419063165,-151.0,0.00026074,7]
[374703353,1753419063175,-151.0,0.00026074,7]
[374703355,1753419063185,-151.0,0.00026074,7]
[374703357,1753419063195,-151.0,0.00026074,7]
[374703359,1753419063205,-151.0,0.00026074,7]
[374703361,1753419063216,-151.0,0.00026074,7]
[374703363,1753419063226,-151.0,0.00026074,7]
[374703365,1753419063236,-151.0,0.00026074,7]
[374703367,1753419063246,-252.892275,0.00026074,7]
[374703369,1753419063256,-344.603171,0.00026074,7]
[374703371,1753419063265,-344.603171,0.00026074,7]
[374703373,1753419063274,-344.603171,0.00026074,7]
[374703375,1753419063286,-344.603171,0.00026074,7]
[374703377,1753419063296,-344.603171,0.00026074,7]
[374703379,1753419063306,-344.603171,0.00026074,7]
[374703381,1753419063315,-344.603171,0.00026074,7]
[374703383,1753419063325,-344.603171,0.00026074,7]
[374703385,1753419063336,-344.603171,0.00026074,7]
[374703387,1753419063345,-344.603171,0.00026074,7]
[374703389,1753419063355,-344.603171,0.00026074,7]
[374703391,1753419063364,-344.603171,0.00026074,7]
[374703393,1753419063373,-344.603171,0.00026074,7]
[374703395,1753419063383,-344.603171,0.00026074,7]
[374703397,1753419063392,-344.603171,0.00026074,7]
[374703399,1753419063401,-344.603163,0.00026074,7]
[374703401,1753419063411,-158.038656,0.00026074,7]
[374703403,1753419063421,-158.038656,0.00026074,7]
[374703405,1753419063431,-158.038656,0.00026074,7]
[374703407,1753419063440,-158.038656,0.00026074,7]
[374703409,1753419063450,-158.038656,0.00026074,7]
[374703411,1753419063460,-158.038656,0.00026074,7]
[374703413,1753419063470,-158.038656,0.00026074,7]
[374703415,1753419063479,-158.038656,0.00026074,7]
[374703417,1753419063489,-158.038656,0.00026074,7]
[374703419,1753419063499,-158.038656,0.00026074,7]
[374703421,1753419063508,-158.038656,0.00026074,7]
[374703423,1753419063517,-158.038656,0.00026074,7]
[374703425,1753419063527,-158.038656,0.00026074,7]
[374703427,1753419063538,-158.038656,0.00026074,7]
[374703429,1753419063547,-158.038656,0.00026074,7]
[374703431,1753419063556,-158.038652,0.00026074,7]
[374703433,1753419063565,-151.0,0.00026075,7]
[374703435,1753419063575,-151.0,0.00026075,7]
[374703437,1753419063584,-151.0,0.00026075,7]
[374703439,1753419063594,-151.0,0.00026075,7]
[374703441,1753419063603,-153.297077,0.00026075,7]
[374703443,1753419063612,-151.0,0.00026075,7]
[374703445,1753419063621,-151.0,0.00026075,7]
[374703447,1753419063630,-151.0,0.00026075,7]
[374703449,1753419063639,-151.0,0.00026075,7]
[374703451,1753419063649,-151.0,0.00026075,7]
[374703453,1753419063659,-151.0,0.00026075,7]
[374703455,1753419063668,-151.0,0.00026075,7]
[374703457,1753419063677,-151.0,0.00026075,7]
[374703459,1753419063687,-151.0,0.00026075,7]
[374703461,1753419063697,-151.0,0.00026075,7]
[374703463,1753419063706,-151.0,0.00026075,7]
[374703465,1753419063716,-223.53988683,0.00026075,7]
[374703467,1753419063725,-151.0,0.00026075,7]
[374703469,1753419063735,-151.0,0.00026075,7]
[374703471,1753419063746,-151.0,0.00026075,7]
[374703473,1753419063757,-151.0,0.00026075,7]
[374703475,1753419063767,-291.950958,0.00026075,7]
[374703477,1753419063776,-151.0,0.00026075,7]
[374703479,1753419063787,-153.501061,0.00026075,7]
[374703481,1753419063796,-196.341692,0.00026075,7]
[374703483,1753419063806,-196.341692,0.00026075,7]
[374703485,1753419063815,-196.341692,0.00026075,7]
[374703487,1753419063825,-196.341692,0.00026075,7]
[374703489,1753419063835,-196.341692,0.00026075,7]
[374703491,1753419063844,-196.341692,0.00026075,7]
[374703493,1753419063854,-196.341692,0.00026075,7]
[374703495,1753419063868,-196.341692,0.00026075,7]
[374703497,1753419063891,-196.341692,0.00026075,7]
[374703499,1753419063907,-196.341692,0.00026075,7]
[374703501,1753419063917,-196.341692,0.00026075,7]
[374703503,1753419063926,-196.341692,0.00026075,7]
[374703505,1753419063935,-196.341692,0.00026075,7]
[374703507,1753419063944,-196.341692,0.00026075,7]
[374703509,1753419063954,-196.341692,0.00026075,7]
[374703511,1753419063963,-196.341688,0.00026075,7]
[374703513,1753419063973,-151.0,0.00026075,7]
[374703515,1753419063982,-151.0,0.00026075,7]